Cogmind - Beta 16 @@@ ROGUE MODE // 2025.12.30 @ 23:49:00 Player: Skergy Result: Destroyed by D-53 Grenadier with Mini Grenade Launcher Performance ------------- Evolutions (0) 0 Regions Visited (4) 800 Robots Destroyed (10) 50 Value Destroyed (191) 191 Prototype IDs (2) 40 Alien Tech Used (0) 0 Bonus (0) 0 TOTAL SCORE: 1081 Bonus ------- None Cogmind --------- Core Integrity 0/250 Matter 208/300 Energy 100/100 System Corruption 0% Temperature Cool (0) Movement Treading (410) Ox3 Location -9/Mines Parts ------- > --- POWER (1) -------- (None) > --- PROPULSION (2) --- Armored Treads > --- UTILITY (2) ------ Huge Storage Unit > --- WEAPON (2) ------- (None) > --- INVENTORY (25) --- Ion Engine Light Ion Engine Aluminum Leg Aluminum Leg Aluminum Leg Carbon-fiber Leg Flight Unit Flight Unit Flight Unit Flight Unit Flight Unit Heat Sink Improved Heat Sink Small Storage Unit Trap Scanner Authchip [Storage] Light Assault Rifle Grenade Launcher Improved Datajack Mining Laser Great Maul Peak State ------------ > --- POWER ------------ Light Ion Engine > --- PROPULSION ------- Light Treads Armored Treads > --- UTILITY ---------- Huge Storage Unit Advanced Targeting Computer > --- WEAPON ----------- Assault Cannon Slug Cannon > --- INVENTORY -------- Ion Engine Light Ion Engine Light Treads Aluminum Leg Aluminum Leg Aluminum Leg Carbon-fiber Leg Flight Unit Flight Unit Flight Unit Flight Unit Flight Unit Heat Sink Improved Heat Sink Small Storage Unit Trap Scanner Authchip [Storage] Light Assault Rifle Grenade Launcher Improved Datajack Mining Laser Great Maul [Rating: 19] Favorites ----------- Power Light Ion Engine Engine Light Ion Engine Propulsion Light Treads Treads Light Treads Utility Huge Storage Unit Device Heat Sink Storage Huge Storage Unit Processor Advanced Targeting Computer Weapon Assault Cannon Energy Gun EM Pulse Gun Ballistic Gun Light Assault Rifle Ballistic Cannon Assault Cannon Build | -11 -10 -10 -10 -9 ------- Run | Yrd Mat Min Exi Min Slots Evolved . | . . . . . Power . | . . . . . Propulsion . | . . . . . Utility . | . . . . . Weapon . | . . . . . Parts Attached 16 | 6 3 6 . 1 Power 4 | 1 . 3 . . Engine 4 | 1 . 3 . . Core . | . . . . . Reactor . | . . . . . Propulsion 3 | 2 . 1 . . Treads 3 | 2 . 1 . . Leg . | . . . . . Wheel . | . . . . . Hover . | . . . . . Flight . | . . . . . Utility 4 | 1 2 1 . . Device 1 | . 1 . . . Storage 2 | 1 1 . . . Processor 1 | . . 1 . . Hackware . | . . . . . Protection . | . . . . . Artifact . | . . . . . Weapon 5 | 2 1 1 . 1 Energy Gun 1 | 1 . . . . Energy Cannon . | . . . . . Ballistic Gun 2 | 1 1 . . . Ballistic Cannon 2 | . . 1 . 1 Launcher . | . . . . . Special Weapon . | . . . . . Impact Weapon . | . . . . . Slashing Weapon . | . . . . . Piercing Weapon . | . . . . . Special Melee Weapon . | . . . . . Unidentified Prototypes . | . . . . . Parts Lost 9 | . . 3 . 6 Power 3 | . . 2 . 1 Propulsion 2 | . . . . 2 Utility 1 | . . . . 1 Weapon 3 | . . 1 . 2 Highest Loss Streak 6 | . . 1 . 6 To Critical Strikes . | . . . . . Average Backups 15 | 2 5 15 21 21 Power 1 | . 1 1 2 2 Propulsion 6 | 1 2 6 10 9 Utility 3 | . . 3 5 5 Weapon 2 | . 1 3 3 3 Tool/Special . | . . . . . Unused Backups 17 | . . . . 17 Power 1 | . . . . 1 Propulsion 9 | . . . . 9 Utility 3 | . . . . 3 Weapon 3 | . . . . 3 Tool/Special 1 | . . . . 1 Average Slot Usage (%) 98 | . 90 99 100 97 Engine 13 | . 13 13 14 12 Treads 27 | . 27 28 28 26 Device 1 | . 7 . . . Storage 14 | . 14 14 14 14 Processor 11 | . . 13 14 14 Ballistic Gun 14 | . 22 14 14 10 Ballistic Cannon 12 | . . 13 14 17 Peak Build Rating 19 | 6 7 16 16 19 Average Rating 13 | 4 6 14 16 16 On Entrance 9 | . 6 7 16 16 Avg Prop Armor Cover (%) . | . . . . . Naked Turns . | . . . . . Heaviest Build 95 | 14 89 93 89 95 Greatest Support 40 | 40 40 40 40 40 Greatest Overweight (x) 4 | 2 4 2 2 4 Average Overweight (x) 1 | . 1 2 2 2 Largest Inventory Capacity 25 | 8 25 25 25 25 Average Capacity 24 | 7 23 25 25 25 Most Carried 22 | 4 6 21 21 22 Average Carried 15 | 2 5 15 21 21 Final Capacity 25 | 8 25 25 25 25 Final Carried 21 | 4 6 21 21 21 Class Distribution -------------------- 100% | Mutant Dominant Class ---------------- Mutant | -10/Materials Mutant | -10/Mines Mutant | -10/Exiles Mutant | -9/Mines Resources | -11 -10 -10 -10 -9 ----------- Run | Yrd Mat Min Exi Min Matter Collected 452 | 206 . 246 . . Remotely . | . . . . . Salvage Created 154 | . . 154 . . Parts 16 | . . 16 . . Haulers Intercepted . | . . . . . Recyclers Shooed . | . . . . . Parts Field Recycled . | . . . . . Retrieved Matter . | . . . . . Parts Self-Destructed . | . . . . . Prevented . | . . . . . Parts Restored . | . . . . . Kills | -11 -10 -10 -10 -9 ------- Run | Yrd Mat Min Exi Min Combat Hostiles Destroyed 10 | . . 10 . . Guns 3 | . . 3 . . Cannons 7 | . . 7 . . Classes Destroyed 2 | . . 2 . . Swarmer 8 | . . 8 . . Grunt 2 | . . 2 . . Best Kill Streak 3 | . . 3 . . Combat Bots Only 3 | . . 3 . . Max Kills in Single Turn 1 | . . 1 . . Gunslinging . | . . . . . Exploded . | . . . . . Melee . | . . . . . Uniques/NPCs Destroyed . | . . . . . Combat | -11 -10 -10 -10 -9 -------- Run | Yrd Mat Min Exi Min Hostile Shots Fired 97 | . 26 53 . 18 Missed 18 | . 5 12 . 1 Hits 79 | . 21 41 . 17 Projectile 79 | . 21 41 . 17 AOE 18 | . . . . 18 Damage Taken 1389 | . 229 412 . 748 Core 266 | . 11 87 . 168 Absorbed by Shields . | . . . . . Core Remaining (%) 100 | 100 . . . . Volleys Fired 25 | . . 23 . 2 Largest 2 | . . 2 . 2 Hottest 77 | . . 57 . 77 Shots Fired 47 | . . 43 . 4 Gun 20 | . . 20 . . Cannon 27 | . . 23 . 4 Launcher . | . . . . . Special . | . . . . . Kinetic 47 | . . 43 . 4 Thermal . | . . . . . Explosive . | . . . . . Electromagnetic . | . . . . . Robot Hit Streak 9 | . . 9 . 8 Robot Miss Streak 9 | . . 9 . 1 Penetration Max . | . . . . . Secondary Targets . | . . . . . Shots Hit Robots 31 | . . 29 . 2 Core Hits 13 | . . 13 . . Critical Kills . | . . . . . Critical Parts Destroyed . | . . . . . Critical Strikes . | . . . . . Melee Attacks . | . . . . . Impact . | . . . . . Slashing . | . . . . . Piercing . | . . . . . Sneak Attacks . | . . . . . Combat Hostiles . | . . . . . Follow-up Attacks . | . . . . . Damage Inflicted 583 | . . 534 . 49 Guns 156 | . . 156 . . Cannons 400 | . . 351 . 49 Explosions 27 | . . 27 . . Melee . | . . . . . Ramming . | . . . . . Kinetic 556 | . . 507 . 49 Thermal 27 | . . 27 . . Explosive . | . . . . . Electromagnetic . | . . . . . Impact . | . . . . . Slashing . | . . . . . Piercing . | . . . . . Highest Corruption . | . . . . . Average Corruption . | . . . . . Corruption Purged . | . . . . . Corruption Blocked . | . . . . . Overload Shots . | . . . . . Overflow Damage 8 | . . 8 . . Projectiles . | . . . . . Explosions 8 | . . 8 . . Melee . | . . . . . Knockbacks 6 | . . 6 . . Impact . | . . . . . Kinetic 6 | . . 6 . . Secondary . | . . . . . Self-Inflicted Damage 16 | . . 16 . . Shots 1 | . . 1 . . Rammed . | . . . . . Targets Rammed . | . . . . . Kicked . | . . . . . Crushed . | . . . . . Highest Temperature 64 | . . 64 . 30 Average Temperature 25 | . . 26 . 16 Received Heat Transfer 213 | . 126 87 . . Siege Activations . | . . . . . Martial Activations . | . . . . . Shielding Activations . | . . . . . Robots Disrupted . | . . . . . Combat Hostiles . | . . . . . Robots Corrupted . | . . . . . Combat Hostiles . | . . . . . Parts Fried . | . . . . . Impact Corruptions . | . . . . . Robots Melted . | . . . . . Combat Hostiles . | . . . . . Parts Melted . | . . . . . Heat Transferred 50 | . . 50 . . Parts Sabotaged . | . . . . . Parts Stolen . | . . . . . Parts Stripped . | . . . . . Power Chain Reactions . | . . . . . Alert | -11 -10 -10 -10 -9 ------- Run | Yrd Mat Min Exi Min Maximum Alert Level . | . . . . . Low Security (%) 100 | 100 100 100 . 100 Level 1 . | . . . . . Level 2 . | . . . . . Level 3 . | . . . . . Level 4 . | . . . . . Level 5 . | . . . . . High Security . | . . . . . Max Security . | . . . . . Peak Influence 120 | . 5 120 . 1 Initial . | . . . . . Average 26 | . . 36 . . Influence Increases 315 | . 5 308 . 2 Destroy 0b10 Robot/C 200 | . . 200 . . Destroy Leader 40 | . . 40 . . Successful Hack 5 | . 5 . . . Disable Machine 45 | . . 45 . . Destroy Structure 25 | . . 23 . 2 Influence Decreases 315 | . 5 266 42 2 Entered New Map 42 | . . . 42 . Time Decay 242 | . 5 236 . 1 Lost Part 31 | . . 30 . 1 Squads Dispatched 3 | . 2 1 . . Investigation 1 | . . 1 . . Extermination . | . . . . . Reinforcement 2 | . 2 . . . Assault . | . . . . . Garrison . | . . . . . Intercept . | . . . . . Searches Triggered . | . . . . . Construction Impeded . | . . . . . Haulers Reinforced . | . . . . . Active Scanning Responses . | . . . . . Cargo Convoy Interrupts . | . . . . . Stealth | -11 -10 -10 -10 -9 --------- Run | Yrd Mat Min Exi Min Distress Signals . | . . . . . Communications Jammed . | . . . . . Distress Signals . | . . . . . Times Spotted 20 | . 7 11 . 2 Peak Tracking Total 5 | . 5 3 . 2 Tactical Retreats . | . . . . . Traps | -11 -10 -10 -10 -9 ------- Run | Yrd Mat Min Exi Min Traps Triggered 2 | . 2 . . . Indirectly . | . . . . . Trap Hack Attempts . | . . . . . Triggered . | . . . . . Disarmed . | . . . . . Reprogrammed . | . . . . . Reused . | . . . . . Traps Extracted . | . . . . . Installed . | . . . . . Triggered . | . . . . . Machines | -11 -10 -10 -10 -9 ---------- Run | Yrd Mat Min Exi Min Machines Disabled 3 | . . 3 . . Max in Single Turn 2 | . . 2 . . Machines Repaired . | . . . . . Machines Dismantled . | . . . . . Machines Sabotaged . | . . . . . Overloaded Fab Kills . | . . . . . Hacking | -11 -10 -10 -10 -9 --------- Run | Yrd Mat Min Exi Min Machines Accessed 2 | . 1 1 . . Terminals 1 | . 1 . . . Fabricators . | . . . . . Repair Stations . | . . . . . Recycling Units . | . . . . . Scanalyzers . | . . . . . Garrison Access . | . . . . . Total Hacks 5 | . 4 1 . . Successful 3 | . 2 1 . . Failed 2 | . 2 . . . Catastrophic . | . . . . . Database Lockouts . | . . . . . Manual 1 | . 1 . . . Terminals 4 | . 4 . . . Fabricators . | . . . . . Repair Stations . | . . . . . Recycling Units . | . . . . . Scanalyzers . | . . . . . Garrison Access . | . . . . . Terminal Hacks 2 | . 1 1 . . Prototype ID Bank 1 | . 1 . . . Open Door 1 | . . 1 . . Fabricator Hacks . | . . . . . Repair Station Hacks . | . . . . . Recycling Unit Hacks . | . . . . . Scanalyzer . | . . . . . Garrison Access Hacks . | . . . . . Unauthorized Hacks 1 | . 1 . . . Terminals 1 | . 1 . . . Botnet 1 | . 1 . . . Fabricators . | . . . . . Repair Stations . | . . . . . Recycling Units . | . . . . . Scanalyzers . | . . . . . Garrison Access . | . . . . . Data Cores Recovered . | . . . . . Used . | . . . . . Hacking Detections 1 | . 1 . . . Full Trace Events . | . . . . . Feedback Events . | . . . . . Feedback Blocked . | . . . . . Robot Schematics Acquired . | . . . . . Robots Built . | . . . . . Authchips . | . . . . . Time . | . . . . . Total Robot Build Rating . | . . . . . Part Schematics Acquired . | . . . . . Parts Built . | . . . . . Authchips . | . . . . . Time . | . . . . . Total Part Build Rating . | . . . . . Part Studies Acquired . | . . . . . Parts Repaired . | . . . . . Time . | . . . . . Parts Recycled . | . . . . . Recycled Matter . | . . . . . Retrieved Matter . | . . . . . Retrieved Components . | . . . . . Parts Scanalyzed . | . . . . . Part Schematics Acquired . | . . . . . Parts Damaged . | . . . . . Bothacking | -11 -10 -10 -10 -9 ------------ Run | Yrd Mat Min Exi Min Used RIF Installer . | . . . . . Robots Hacked . | . . . . . Non-combat . | . . . . . Combat . | . . . . . Robot Hacks Applied . | . . . . . Relay Couplers Released . | . . . . . Fabnet Peak Effective % . | . . . . . Robots Rewired . | . . . . . Allies Hacked . | . . . . . Hacks Repelled . | . . . . . Allies | -11 -10 -10 -10 -9 -------- Run | Yrd Mat Min Exi Min Total Allies . | . . . . . Largest Group . | . . . . . Highest-Rated Group . | . . . . . Highest-Rated Ally . | . . . . . Total Orders . | . . . . . Ally Attacks . | . . . . . Total Damage . | . . . . . Kills . | . . . . . Allies Corrupted . | . . . . . Allies Melted . | . . . . . Intel | -11 -10 -10 -10 -9 ------- Run | Yrd Mat Min Exi Min Active Infowar (turns) . | . . . . . Robot Analysis Total . | . . . . . Derelict Logs Recovered 2 | . . 2 . . Drone Launches . | . . . . . Drone Recoveries . | . . . . . Exploration | -11 -10 -10 -10 -9 ------------- Run | Yrd Mat Min Exi Min Turns Passed 2322 | 78 272 1366 407 199 Spaces Moved 709 | 44 87 394 126 58 Core 8 | 8 . . . . Treads 701 | 36 87 394 126 58 Legs . | . . . . . Wheels . | . . . . . Hover . | . . . . . Flight . | . . . . . Fastest Speed 50 | 50 160 320 325 325 Average Speed 311 | 151 303 324 325 329 Slowest Speed 490 | 160 480 325 325 490 Overloaded Moves . | . . . . . Propulsion Burnouts . | . . . . . Robots Hopped . | . . . . . Potential Cave-ins . | . . . . . Cave-ins Triggered . | . . . . . Exploration Rate (%) 37 | 5 25 87 48 23 Regions Visited 4 Branch Regions 3 Pre-discovered Areas 1 | . . 1 . . Known Exits Taken . | . . . . . Unknown Exits Taken 4 | 1 1 1 1 . Scrap Searched 1 | . . 1 . . Spaces Dug . | . . . . . Terrain Destroyed 34 | . . 32 . 2 Melee . | . . . . . Projectile 9 | . . 7 . 2 AOE 25 | . . 25 . . Terrain Rammed . | . . . . . Walls Destroyed . | . . . . . Machines Disabled . | . . . . . Actions | -11 -10 -10 -10 -9 --------- Run | Yrd Mat Min Exi Min Total 776 | 53 95 440 125 63 Wait 1 | . . 1 . . Move 705 | 43 86 393 125 58 Hop . | . . . . . Pick Up 20 | 4 2 13 . 1 Fast Attach 14 | 6 5 3 . . Attach 4 | . 1 2 . 1 Detach 3 | . 1 2 . . Swap 4 | . . 3 . 1 Drop . | . . . . . Fire 25 | . . 23 . 2 Melee . | . . . . . Ram . | . . . . . Kick . | . . . . . Crush . | . . . . . Escape Stasis . | . . . . . Rewire . | . . . . . Trap . | . . . . . Miscellaneous . | . . . . . Route ------- -11/Scrapyard -10/Materials -10/Mines (discovered 2 exits: [*Mat] / [*Exi]) -10/Exiles -9/Mines History --------- Turn | Location | Event 25 | -11/Scrapyard | Discovered new exit (range 15) 79 | -11/Scrapyard | Entered Materials 296 | -10/Materials | Discovered new exit (range 14) 305 | -10/Materials | Build established: Mutant 351 | -10/Materials | Entered Mines 362 | -10/Mines | Met a Derelict shopkeep closing up shop 372 | -10/Mines | Learned location of Storage (-7) 397 | -10/Mines | Met a Derelict bent on vengeance 1508 | -10/Mines | Discovered new exit (range 12) 1701 | -10/Mines | Deemed a non-threat by the Exiles lab entrance 1704 | -10/Mines | Discovered new exit (range 5) 1717 | -10/Mines | Entered Exiles 1795 | -10/Exiles | Met 8R-AWN 1851 | -10/Exiles | Met EX-HEX 1974 | -10/Exiles | Met EX-DEC 2094 | -10/Exiles | Discovered new exit (range 10) 2124 | -10/Exiles | Entered Mines 2194 | -9/Mines | Assembled infested the area 2258 | -9/Mines | A weapon hastily lodged in a ceiling crevice suddenly fell to the ground 2312 | -9/Mines | Core integrity fell below 50% 2314 | -9/Mines | Core integrity fell below 20% 2323 | -9/Mines | Destroyed by D-53 Grenadier with Mini Grenade Launcher Last Messages --------------- LOCATION=UNKNOWN GOAL=ESCAPE 02194_ ALERT: Infestation in the mines, dispatching Demolisher response squad. 02258_ A Slug Cannon has been hastily shoved under some rubble with a note attached: "It's not as slow as it sounds." 02264_ Acquired Slug Cannon. 02269_ K-01 Serf collects debris. 02302_ K-01 Serf destroyed. 02306_ Lgt. Treads destroyed. 02307_ The unstable cave ceiling collapses. 02309_ Lgt. Ion Engine destroyed. 02311_ The unstable cave ceiling collapses. 02319_ Lgt. Treads destroyed. 02321_ The unstable cave ceiling collapses. 02321_ Assault Cannon destroyed. 02321_ Adv. Targeting Computer destroyed. 02321_ Slug Cannon destroyed. 02322_ The unstable cave ceiling collapses. Map ----- +----------------------------------------------------+ | ?????????????????????????????????????????????????? | | ?????????????????????????????????????????????????? | | ?????????????????????????????????????????????????? | | ???????????????????????????????????????????????? | | ???????????????????????????????????????????????# | | ???????????????????????????????????????????????# | | ???????????????????????????????????????????????# | | ?????????????????????????????????????????????#? | | ?????????????????????????????????????????????? ? | | ?????????????????????????????????????????????? | | ??????????????????????????# ?????????????????? | | ?????????????????????????# ??????????????????? | | ????????????????????????## ???????????????????? | | ???????????????????????? ????????????????????? | | ????????????????????????? %????????????????????? | | ????????????????????????? % #????????????????????# | | ?????????????????????????# #?###????????????????# | | ?????????????????????????"d ? ????????????????# | | ?????????????????????????# #?# #????????????????# | | ????????????????????????## d#?# #????????????????# | | ???????????????????????##; ### ##???????????????# | | ??????????????????????## ##??????????????# | | ?????????????????????## #??????????????# | | ?????????????????????# ##??????#####??# | | ??????????????# ## #####?## ##?# | | ??????????????# @ ### ### | | ??????????????# | | ??????????????## # | | ???????????????# # # #### | | ???????????????# ?## ##### ##??? | | ???????????????# ???## ###???## #???? | | ???????????????## ?????######??????## #???? | | ????????????????##???????????????????## #???? | | ??????????????????????????????????????########???? | | ?????????????????????????????????????????????????? | | ?????????????????????????????????????????????????? | | | | | | | | | | | | | | | | | | | | | | | | | | | | | +----------------------------------------------------+ Best States ------------- Heat Dissipation 35 Energy Generation 10 Energy Capacity 250 Matter Stores 246 Matter Capacity 300 Sight Range 16 Terrain Scan Density 10 Evasion (%) 40 Targeting Accuracy 8 Recoil Reduction 2 Authchip Count 1 Item Schematics ----------------- None Robot Schematics ------------------ None Fabricated ------------ Nothing Repaired ---------- Nothing Studied --------- None Alien Tech Used ----------------- None Achievements -------------- None Challenges ------------ None Game ------ Seed ProjectionWeaponsBasin Manual? 0 Play Time 00:09:34 Cumulative 93.2 hours Start 2025.12.30 @ 23:39:20 End 2025.12.30 @ 23:49:00 Sessions 1 Manual Loads 0 Difficulty Rogue Special Mode None Game No. 109 Rogue 109 Adventurer 0 Explorer 0 Win Type - Total 3 Types 3/0/0/0/0/0/0/0/0/0 Lore% 56 Gallery% 47 Achievement% 33 Wizard Run 0 Options --------- Layout 1 ASCII 0 Keyboard 1 Movement Vi Keybinds 0 Fullscreen 2 Font 24/Terminus Map View 50x35 Zoom Use 0% Tactical HUD 1 Map Filters NONE Filters NONE Steam 1 RUN: a456f54a-faa3-4fa5-9726-0560f938a6cf